fUSD/lending_fUSD_20260413
["ID","MTS","AMOUNT","RATE_DAILY","PERIOD"]
[420376057,1776045049782,-500.0,0.00038356,15]
[420376058,1776045049796,-1005.89,0.00038356,15]
[420376059,1776045049807,-500.0,0.00038356,15]
[420376060,1776045049816,-500.0,0.00038356,15]
[420376061,1776045049826,-500.0,0.00038356,15]
[420376062,1776045049843,-1043.83,0.00038356,15]
[420376063,1776045049854,-585.35,0.00038356,7]
[420376064,1776045049865,-500.0,0.00038356,15]
[420376065,1776045049875,-607.38563389,0.00038356,15]
[420376066,1776045049890,-1218.53,0.00038356,15]
[420376067,1776045049904,-500.0,0.00038356,15]
[420376068,1776045049915,-570.69,0.00038356,15]
[420376069,1776045049925,-932.89,0.00038356,15]
[420376070,1776045049937,-500.0,0.00038356,15]
[420376071,1776045049952,-500.0,0.00038356,15]
[420376073,1776045049965,-1071.77,0.00038356,15]
[420376074,1776045049979,-660.82,0.00038356,15]
[420376075,1776045049991,-500.0,0.00038356,15]
[420376076,1776045050018,-500.0,0.00038356,15]
[420376077,1776045050028,-500.0,0.00038356,15]
[420376078,1776045050059,-743.09,0.00038356,15]
[420376079,1776045050069,-938.46,0.00038356,15]
[420376080,1776045050090,-448.23975203,0.00038356,15]
[420376081,1776045050120,-991.36,0.00038356,15]
[420376082,1776045050135,-675.2,0.00038356,15]
[420376083,1776045050146,-500.0,0.00038356,15]
[420376084,1776045050169,-500.0,0.00038356,15]
[420376085,1776045050183,-500.0,0.00038356,15]
[420376087,1776045050194,-500.0,0.00038356,15]
[420376089,1776045050213,-152.234009,0.00038356,7]
[420376091,1776045050227,-626.94,0.00038356,15]
[420376093,1776045050239,-896.46,0.00038356,15]
[420376094,1776045050257,-500.0,0.00038356,15]
[420376097,1776045050284,-500.0,0.00038356,15]
[420376098,1776045050318,-1035.43,0.00038356,15]
[420376100,1776045050345,-1018.25,0.00038356,15]
[420376102,1776045050356,-500.0,0.00038356,15]
[420376104,1776045050374,-577.5,0.00038356,15]
[420376106,1776045050389,-1169.73,0.00038356,15]
[420376107,1776045050401,-500.0,0.00038356,15]
[420376109,1776045050416,-500.0,0.00038356,15]
[420376110,1776045050437,-2236.14,0.00038356,15]
[420376112,1776045050449,-576.56,0.00038356,15]
[420376114,1776045050466,-500.0,0.00038356,15]
[420376116,1776045050479,-1490.06,0.00038356,15]
[420376117,1776045050490,-500.0,0.00038356,15]
[420376119,1776045050502,-500.0,0.00038356,15]
[420376120,1776045050528,-257.15607569,0.00038356,15]
[420376121,1776045050538,-500.0,0.00038356,15]
[420376123,1776045050571,-565.27,0.00038356,15]
[420376125,1776045050582,-5351.41,0.00038356,15]
[420376127,1776045050597,-500.0,0.00038356,15]
[420376128,1776045050624,-1227.64,0.00038356,15]
[420376129,1776045050633,-1153.49,0.00038356,15]
[420376130,1776045050652,-792.92,0.00038356,15]
[420376131,1776045050665,-500.0,0.00038356,15]
[420376132,1776045050675,-1232.78,0.00038356,15]
[420376133,1776045050691,-500.0,0.00038356,15]
[420376134,1776045050710,-500.0,0.00038356,15]
[420376135,1776045050721,-500.0,0.00038356,15]
[420376136,1776045050734,-500.0,0.00038356,15]
[420376137,1776045050765,-1300.34,0.00038356,15]
[420376138,1776045050775,-1195.56,0.00038356,15]
[420376139,1776045050801,-500.0,0.00038356,15]
[420376140,1776045050814,-500.0,0.00038356,15]
[420376142,1776045050838,-1737.89,0.00038356,15]
[420376144,1776045050847,-1096.46,0.00038356,14]
[420376146,1776045050869,-500.0,0.00038356,15]
[420376148,1776045050883,-280.88846296,0.00038356,15]
[420376150,1776045050896,-500.0,0.00038356,15]
[420376152,1776045050923,-500.0,0.00038356,15]
[420376153,1776045050935,-1063.5,0.00038356,15]
[420376155,1776045050950,-500.0,0.00038356,15]
[420376156,1776045050967,-1607.39,0.00038356,15]
[420376157,1776045050977,-1093.61,0.00038356,15]
[420376158,1776045050994,-500.0,0.00038356,15]
[420376159,1776045051011,-1099.95,0.00038356,15]
[420376160,1776045051036,-863.32,0.00038356,15]
[420376161,1776045051051,-500.0,0.00038356,15]
[420376162,1776045051064,-500.0,0.00038356,15]
[420376163,1776045051082,-500.0,0.00038356,15]
[420376164,1776045051096,-500.0,0.00038356,15]
[420376165,1776045051122,-157.01602019,0.00038356,15]
[420376166,1776045051143,-500.0,0.00038356,15]
[420376167,1776045051156,-500.0,0.00038356,15]
[420376168,1776045051169,-500.0,0.00038356,15]
[420376169,1776045051186,-500.0,0.00038356,15]
[420376170,1776045051200,-500.0,0.00038356,15]
[420376171,1776045051213,-500.0,0.00038356,15]
[420376172,1776045051237,-500.0,0.00038356,15]
[420376173,1776045051268,-501.59394938,0.00038356,15]
[420376174,1776045051305,-1836.11,0.00038356,15]
[420376175,1776045051315,-500.0,0.00038356,15]
[420376176,1776045051349,-1786.42,0.00038356,15]
[420376177,1776045051359,-850.37,0.00038356,15]
[420376178,1776045051414,-500.0,0.00038356,15]
[420376179,1776045051438,-500.0,0.00038356,15]
[420376180,1776045051458,-500.0,0.00038356,15]
[420376181,1776045051484,-1573.85,0.00038356,15]
[420376182,1776045051499,-500.0,0.00038356,15]
[420376183,1776045051524,-703.96,0.00038356,15]
[420376184,1776045051534,-708.76,0.00038356,15]
[420376185,1776045051556,-500.0,0.00038356,15]
[420376186,1776045051571,-2482.72,0.00038356,15]
[420376187,1776045051595,-500.0,0.00038356,15]
[420376188,1776045051611,-681.28,0.00038356,15]
[420376189,1776045051626,-500.0,0.00038356,15]
[420376190,1776045051647,-500.0,0.00038356,15]
[420376191,1776045051658,-500.0,0.00038356,15]
[420376192,1776045051670,-511.64,0.00038356,15]
[420376193,1776045051690,-500.0,0.00038356,15]
[420376194,1776045051714,-634.64,0.00038356,15]
[420376195,1776045051730,-1786.49,0.00038356,15]
[420376196,1776045051741,-297.92344056,0.00038356,15]
[420376197,1776045051751,-500.0,0.00038356,15]
[420376198,1776045051762,-464.21246091,0.00038356,15]
[420376199,1776045051777,-1939.57,0.00038356,15]
[420376200,1776045051795,-500.0,0.00038356,15]
[420376201,1776045051807,-500.0,0.00038356,15]
[420376202,1776045051818,-1704.06,0.00038356,15]
[420376203,1776045051830,-500.0,0.00038356,15]
[420376204,1776045051861,-593.1,0.00038356,15]
[420376205,1776045051871,-1279.99,0.00038356,15]
[420376206,1776045051882,-990.68,0.00038356,15]
[420376207,1776045051895,-621.13,0.00038356,15]
[420376208,1776045051914,-1016.9,0.00038356,15]
[420376209,1776045052329,-500.0,0.00038356,15]
[420376210,1776045052340,-500.0,0.00038356,15]
[420376211,1776045052350,-500.0,0.00038356,15]
[420376212,1776045052381,-402.63086295,0.00038356,15]
[420376213,1776045052395,-500.0,0.00038356,15]
[420376214,1776045052408,-1376.44,0.00038356,15]
[420376215,1776045052423,-500.0,0.00038356,15]
[420376216,1776045052436,-664.18,0.00038356,15]
[420376217,1776045052453,-557.26,0.00038356,15]
[420376218,1776045052472,-500.0,0.00038356,15]
[420376219,1776045052484,-500.0,0.00038356,15]
[420376220,1776045052505,-500.0,0.00038356,15]
[420376221,1776045052531,-595.56,0.00038356,15]
[420376222,1776045052541,-500.0,0.00038356,15]
[420376223,1776045052573,-1777.69,0.00038356,15]
[420376224,1776045052585,-2093.58,0.00038356,15]
[420376225,1776045052601,-1598.74,0.00038356,15]
[420376226,1776045052615,-500.0,0.00038356,15]
[420376227,1776045052627,-500.0,0.00038356,15]
[420376228,1776045052641,-500.0,0.00038356,15]
[420376229,1776045052652,-1209.55,0.00038356,15]
[420376230,1776045052670,-500.0,0.00038356,15]
[420376231,1776045052681,-777.2,0.00038356,15]
[420376232,1776045052691,-500.0,0.00038356,15]
[420376233,1776045052717,-1378.49,0.00038356,15]
[420376234,1776045052729,-500.0,0.00038356,15]
[420376235,1776045052739,-801.57,0.00038356,15]
[420376236,1776045052754,-790.35,0.00038356,15]
[420376237,1776045052764,-500.0,0.00038356,15]
[420376238,1776045052775,-1180.46,0.00038356,15]
[420376239,1776045052784,-971.25,0.00038356,15]
[420376240,1776045052816,-556.44,0.00038356,15]
[420376241,1776045052826,-1692.61,0.00038356,15]
[420376242,1776045052836,-500.0,0.00038356,15]
[420376243,1776045052847,-40999.33,0.00038356,15]
[420376244,1776045052857,-519.22,0.00038356,15]
[420376245,1776045052867,-753.08,0.00038356,15]
[420376246,1776045052877,-500.0,0.00038356,15]
[420376247,1776045052889,-731.76,0.00038356,15]
[420376248,1776045052901,-548.25,0.00038356,15]
[420376249,1776045052912,-500.0,0.00038356,15]
[420376250,1776045052922,-500.0,0.00038356,15]
[420376251,1776045052933,-500.0,0.00038356,15]
[420376252,1776045052943,-500.0,0.00038356,15]
[420376253,1776045052959,-297.09863414,0.00038356,15]
[420376254,1776045052969,-500.0,0.00038356,15]
[420376255,1776045052979,-500.0,0.00038356,15]
[420376256,1776045052994,-1723.04,0.00038356,15]
[420376257,1776045053007,-930.79,0.00038356,15]
[420376258,1776045053017,-2482.22,0.00038356,15]
[420376259,1776045053031,-500.0,0.00038356,15]
[420376260,1776045053043,-500.0,0.00038356,15]
[420376261,1776045053052,-837.01,0.00038356,15]
[420376262,1776045053063,-500.0,0.00038356,15]
[420376263,1776045053082,-500.0,0.00038356,15]
[420376264,1776045053105,-1211.68,0.00038356,15]
[420376265,1776045053117,-839.33,0.00038356,15]
[420376266,1776045053139,-20681.2250813,0.00038356,2]
[420376267,1776045053154,-1016.77,0.00038356,15]
[420376268,1776045053165,-856.17,0.00038356,15]
[420376269,1776045053214,-500.0,0.00038356,15]
[420376270,1776045053271,-500.0,0.00038356,15]
[420376271,1776045053285,-500.0,0.00038356,15]
[420376272,1776045053320,-2086.07,0.00038356,15]
[420376273,1776045053339,-500.0,0.00038356,15]
[420376274,1776045053386,-1107.2,0.00038356,15]
[420376275,1776045053413,-500.0,0.00038356,15]
[420376276,1776045053430,-500.0,0.00038356,15]
[420376277,1776045053447,-1178.65,0.00038356,15]
[420376278,1776045053481,-827.32,0.00038356,15]
[420376279,1776045053497,-549.37,0.00038356,15]
[420376280,1776045053513,-967.31,0.00038356,15]
[420376281,1776045053528,-1075.52,0.00038356,15]
[420376282,1776045053546,-937.07,0.00038356,15]
[420376283,1776045053559,-681.45,0.00038356,15]
[420376284,1776045053572,-500.0,0.00038356,15]
[420376285,1776045053591,-500.0,0.00038356,15]
[420376286,1776045053619,-689.45,0.00038356,15]
[420376287,1776045053633,-1533.25,0.00038356,15]
[420376288,1776045053646,-1631.15,0.00038356,15]
[420376289,1776045053670,-512.91401343,0.00038356,15]
[420376290,1776045053685,-520.52129366,0.00038356,15]
[420376291,1776045053714,-2081.03,0.00038356,15]
[420376292,1776045053750,-823.91,0.00038356,15]
[420376293,1776045053793,-1161.74,0.00038356,15]
[420376294,1776045053840,-500.0,0.00038356,15]
[420376295,1776045053854,-161.00979615,0.00038356,15]
[420376296,1776045053931,-1845.23,0.00038356,15]
[420376297,1776045053947,-3236.1,0.00038356,15]
[420376298,1776045053968,-587.26,0.00038356,15]
[420376299,1776045053988,-500.0,0.00038356,15]
[420376300,1776045054011,-512.05136764,0.00038356,15]
[420376301,1776045054026,-500.0,0.00038356,15]
[420376302,1776045054046,-880.71,0.00038356,15]
[420376303,1776045054059,-500.0,0.00038356,15]
[420376304,1776045054072,-4046.5,0.00038356,14]
[420376305,1776045054105,-1878.04,0.00038356,15]
[420376306,1776045054118,-1045.2,0.00038356,15]
[420376307,1776045054152,-500.0,0.00038356,15]
[420376308,1776045054163,-500.0,0.00038356,15]
[420376309,1776045054173,-2362.5,0.00038356,15]
[420376310,1776045054191,-1752.16,0.00038356,15]
[420376311,1776045054211,-500.0,0.00038356,15]
[420376312,1776045054222,-1651.77,0.00038356,15]
[420376313,1776045054251,-500.0,0.00038356,15]
[420376314,1776045054262,-500.0,0.00038356,15]
[420376315,1776045054276,-886.36,0.00038356,15]
[420376316,1776045054306,-2500.71,0.00038356,15]
[420376317,1776045054317,-1171.0,0.00038356,15]
[420376318,1776045054341,-500.0,0.00038356,15]
[420376319,1776045054352,-519.88,0.00038356,15]
[420376320,1776045054373,-500.0,0.00038356,15]
[420376321,1776045054386,-915.35,0.00038356,15]
[420376322,1776045054401,-500.0,0.00038356,15]
[420376323,1776045054418,-500.0,0.00038356,15]
[420376324,1776045054430,-500.0,0.00038356,15]
[420376325,1776045054444,-2122.98,0.00038356,15]
[420376326,1776045054471,-868.59,0.00038356,15]
[420376327,1776045054483,-584.05,0.00038356,15]
[420376328,1776045054511,-1895.21,0.00038356,15]
[420376329,1776045054523,-697.91,0.00038356,15]
[420376330,1776045054553,-1032.41,0.00038356,15]
[420376331,1776045054563,-1360.22,0.00038356,15]
[420376332,1776045054593,-610.35,0.00038356,15]
[420376333,1776045054603,-170.47710412,0.00038356,15]
[420376334,1776045054625,-1695.39,0.00038356,15]
[420376335,1776045054642,-500.0,0.00038356,15]
[420376336,1776045054653,-674.86,0.00038356,15]
[420376337,1776045054671,-500.0,0.00038356,15]
[420376338,1776045054684,-500.0,0.00038356,15]
[420376339,1776045054697,-960.1,0.00038356,15]
[420376340,1776045054714,-2144.54,0.00038356,15]
[420376341,1776045054737,-152.06964421,0.00038356,15]
[420376342,1776045054748,-733.38,0.00038356,15]
[420376343,1776045054777,-500.0,0.00038356,15]
[420376344,1776045054787,-500.0,0.00038356,15]
[420376345,1776045054824,-862.24,0.00038356,15]
[420376346,1776045054913,-500.0,0.00038356,15]
[420376347,1776045054983,-500.0,0.00038356,15]
[420376348,1776045055010,-370.03729199,0.00038356,15]
[420376349,1776045055060,-500.0,0.00038356,15]
[420376350,1776045055096,-191.31545409,0.00038356,15]
[420376351,1776045055140,-1454.25,0.00038356,15]
[420376352,1776045055186,-318.17029419,0.00038356,15]
[420376353,1776045055197,-1394.46,0.00038356,15]
[420376354,1776045055208,-1764.57,0.00038356,15]
[420376355,1776045055233,-500.0,0.00038356,15]
[420376356,1776045055244,-1680.05,0.00038356,15]
[420376357,1776045055258,-500.0,0.00038356,15]
[420376358,1776045055279,-819.87,0.00038356,15]
[420376359,1776045055289,-807.33,0.00038356,15]
[420376360,1776045055302,-160.31039845,0.00038356,15]
[420376361,1776045055321,-602.86,0.00038356,15]
[420376362,1776045055334,-1559.67,0.00038356,15]
[420376363,1776045055347,-500.0,0.00038356,15]
[420376364,1776045055383,-1827.6,0.00038356,15]
[420376365,1776045055412,-518.9,0.00038356,15]
[420376366,1776045055423,-960.52,0.00038356,15]
[420376367,1776045055465,-500.0,0.00038356,15]
[420376368,1776045055477,-500.0,0.00038356,15]
[420376369,1776045055709,-512.41097715,0.00038356,15]
[420376370,1776045055734,-706.97,0.00038356,15]
[420376371,1776045055747,-1608.68,0.00038356,15]
[420376372,1776045055759,-500.0,0.00038356,15]
[420376373,1776045055775,-962.89,0.00038356,15]
[420376374,1776045055792,-759.58,0.00038356,15]
[420376375,1776045055805,-500.0,0.00038356,15]
[420376376,1776045055818,-1447.49,0.00038356,15]
[420376377,1776045055836,-500.0,0.00038356,15]
[420376378,1776045055869,-500.0,0.00038356,15]
[420376379,1776045055892,-500.0,0.00038356,15]
[420376380,1776045055903,-1783.67,0.00038356,15]
[420376381,1776045055918,-500.0,0.00038356,15]
[420376382,1776045055934,-569.71,0.00038356,15]
[420376383,1776045055947,-500.0,0.00038356,15]
[420376384,1776045055957,-500.0,0.00038356,15]
[420376385,1776045055974,-527.4,0.00038356,15]
[420376386,1776045055983,-500.0,0.00038356,15]
[420376387,1776045055994,-500.0,0.00038356,15]
[420376388,1776045056003,-1251.66,0.00038356,15]
[420376389,1776045056018,-1885.42,0.00038356,15]
[420376390,1776045056028,-1265.04,0.00038356,15]
[420376391,1776045056038,-223.33986703,0.00038356,15]
[420376392,1776045056049,-500.0,0.00038356,15]
[420376393,1776045056061,-1143.33,0.00038356,15]
[420376394,1776045056072,-500.0,0.00038356,15]
[420376395,1776045056082,-1095.73,0.00038356,15]
[420376396,1776045056100,-500.0,0.00038356,15]
[420376397,1776045056110,-500.0,0.00038356,15]
[420376398,1776045056122,-500.0,0.00038356,15]
[420376399,1776045056138,-500.0,0.00038356,15]
[420376400,1776045056150,-336.52459626,0.00038356,15]
[420376401,1776045056168,-631.12,0.00038356,15]
[420376402,1776045056180,-1173.42,0.00038356,15]
[420376403,1776045056195,-500.0,0.00038356,15]
[420376404,1776045056216,-1210.72,0.00038356,15]
[420376405,1776045056232,-694.05,0.00038356,15]
[420376406,1776045056246,-500.0,0.00038356,15]
[420376407,1776045056296,-2524.27,0.00038356,15]
[420376408,1776045056320,-500.0,0.00038356,15]
[420376409,1776045056333,-500.0,0.00038356,15]
[420376410,1776045056361,-523.89,0.00038356,15]
[420376411,1776045056372,-500.0,0.00038356,15]
[420376412,1776045056406,-500.0,0.00038356,15]
[420376413,1776045056420,-1261.76303516,0.00038356,15]
[420376414,1776045056436,-582.73901397,0.00038356,15]
[420376415,1776045056451,-741.07,0.00038356,15]
[420376416,1776045056470,-1064.28,0.00038356,15]
[420376417,1776045056482,-249.84587912,0.00038356,15]
[420376418,1776045056496,-3851.24,0.00038356,15]
[420376419,1776045056522,-282.08169398,0.00038356,15]
[420376420,1776045056532,-2835.33,0.00038356,15]
[420376421,1776045056548,-500.0,0.00038356,15]
[420376422,1776045056559,-500.0,0.00038356,15]
[420376423,1776045056569,-971.65,0.00038356,15]
[420376424,1776045056583,-1599.66,0.00038356,15]
[420376425,1776045056597,-500.0,0.00038356,15]
[420376426,1776045056610,-500.0,0.00038356,15]
[420376427,1776045056635,-1704.26,0.00038356,15]
[420376428,1776045056647,-500.0,0.00038356,15]
[420376429,1776045056660,-671.9,0.00038356,15]
[420376430,1776045056671,-500.0,0.00038356,15]
[420376431,1776045056688,-500.0,0.00038356,15]
[420376432,1776045056701,-988.23,0.00038356,15]
[420376433,1776045056711,-648.26,0.00038356,15]
[420376434,1776045056734,-1941.02,0.00038356,15]
[420376435,1776045056744,-500.0,0.00038356,15]
[420376436,1776045056753,-955.21,0.00038356,15]
[420376437,1776045056772,-502.86013873,0.00038356,15]
[420376438,1776045056790,-904.96,0.00038356,15]
[420376439,1776045056799,-500.0,0.00038356,15]
[420376440,1776045056820,-500.0,0.00038356,15]
[420376441,1776045056830,-500.0,0.00038356,15]
[420376442,1776045056853,-972.44,0.00038356,15]
[420376443,1776045056865,-257.92688919,0.00038356,15]
[420376444,1776045056890,-879.17,0.00038356,15]
[420376445,1776045056907,-500.3266161,0.00038356,15]
[420376446,1776045056917,-500.0,0.00038356,2]
[420376447,1776045056926,-814.87,0.00038356,15]
[420376448,1776045057045,-905.2,0.00038356,15]
[420376449,1776045057059,-500.0,0.00038356,15]
[420376450,1776045057072,-537.14,0.00038356,15]
[420376451,1776045057082,-500.0,0.00038356,15]
[420376452,1776045057091,-1294.09,0.00038356,15]
[420376453,1776045057107,-500.0,0.00038356,15]
[420376454,1776045057117,-586.25974912,0.00038356,15]
[420376455,1776045057126,-1376.18,0.00038356,15]
[420376456,1776045057140,-1216.47,0.00038356,15]
[420376457,1776045057154,-500.0,0.00038356,15]
[420376458,1776045057164,-500.0,0.00038356,15]
[420376459,1776045057174,-500.0,0.00038356,15]
[420376460,1776045057195,-500.0,0.00038356,15]
[420376461,1776045057204,-782.57,0.00038356,15]
[420376462,1776045057214,-684.66,0.00038356,15]
[420376463,1776045057225,-1827.33,0.00038356,15]
[420376464,1776045057246,-1961.6,0.00038356,15]
[420376465,1776045057256,-624.31,0.00038356,15]
[420376466,1776045057278,-2959.3,0.00038356,15]
[420376467,1776045057290,-777.44,0.00038356,15]
[420376468,1776045057305,-594.04,0.00038356,15]
[420376469,1776045057329,-1294.26,0.00038356,15]
[420376470,1776045057344,-500.0,0.00038356,15]
[420376471,1776045057354,-500.0,0.00038356,15]
[420376472,1776045057366,-500.0,0.00038356,15]
[420376473,1776045057380,-500.0,0.00038356,15]
[420376474,1776045057397,-549.29,0.00038356,15]
[420376475,1776045057408,-500.0,0.00038356,15]
[420376476,1776045057432,-500.0,0.00038356,15]
[420376477,1776045057442,-547.42006373,0.00038356,15]
[420376478,1776045057454,-151.0,0.00038356,30]
[420376479,1776045057473,-151.0,0.00038356,30]
[420376480,1776045057482,-151.0,0.00038356,30]
[420376481,1776045057496,-151.0,0.00038356,30]
[420376482,1776045057516,-151.0,0.00038356,30]
[420376483,1776045057527,-151.0,0.00038356,30]
[420376484,1776045057542,-151.0,0.00038356,30]
[420376485,1776045057569,-151.0,0.00038356,30]
[420376486,1776045057579,-151.0,0.00038356,30]
[420376487,1776045057603,-151.0,0.00038356,30]
[420376488,1776045057615,-207.307267,0.00038356,30]
[420376489,1776045057629,-151.0,0.00038356,30]
[420376490,1776045057646,-151.0,0.00038356,30]
[420376491,1776045057707,-151.0,0.00038356,30]
[420376492,1776045057727,-154.827749,0.00038356,30]
[420376493,1776045057757,-285.965964,0.00038356,30]
[420376494,1776045057767,-151.0,0.00038356,30]
[420376495,1776045057800,-285.965964,0.00038356,30]
[420376496,1776045057812,-151.0,0.00038356,30]
[420376497,1776045057825,-285.965964,0.00038356,30]
[420376498,1776045057840,-285.965964,0.00038356,30]
[420376499,1776045057860,-151.0,0.00038356,30]
[420376500,1776045057871,-151.0,0.00038356,30]
[420376501,1776045057880,-151.0,0.00038356,30]
[420376502,1776045057890,-151.0,0.00038356,30]
[420376503,1776045057908,-279.865299,0.00038356,30]
[420376504,1776045057924,-151.0,0.00038356,30]
[420376505,1776045057934,-279.865299,0.00038356,30]
[420376506,1776045057947,-151.0,0.00038356,30]
[420376507,1776045057963,-279.865299,0.00038356,30]
[420376508,1776045057975,-151.0,0.00038356,30]
[420376509,1776045057994,-151.0,0.00038356,30]
[420376510,1776045058007,-279.865299,0.00038356,30]
[420376511,1776045058035,-244.078931,0.00038356,30]
[420376512,1776045058054,-151.0,0.00038356,30]
[420376513,1776045058063,-151.0,0.00038356,30]
[420376514,1776045058073,-151.0,0.00038356,30]
[420376515,1776045058090,-398.010391,0.00038356,30]
[420376516,1776045058100,-198.882598,0.00038356,30]
[420376517,1776045058110,-265.295446,0.00038356,30]
[420376518,1776045058127,-398.010391,0.00038356,30]
[420376519,1776045058137,-398.010391,0.00038356,30]
[420376520,1776045058147,-151.0,0.00038356,30]
[420376521,1776045058166,-398.010391,0.00038356,30]
[420376522,1776045058176,-151.0,0.00038356,30]
[420376523,1776045058193,-151.0,0.00038356,30]
[420376524,1776045058214,-151.0,0.00038356,30]
[420376525,1776045058224,-151.0,0.00038356,30]
[420376526,1776045058239,-151.0,0.00038356,30]
[420376527,1776045058254,-245.032046,0.00038356,30]
[420376528,1776045058264,-483.44055,0.00038356,30]
[420376529,1776045058275,-151.0,0.00038356,30]
[420376530,1776045058290,-483.44055,0.00038356,30]
[420376531,1776045058303,-151.0,0.00038356,30]
[420376532,1776045058329,-483.44055,0.00038356,30]
[420376533,1776045058339,-151.0,0.00038356,30]
[420376534,1776045058355,-256.243717,0.00038356,30]
[420376535,1776045058368,-483.44055,0.00038356,30]
[420376536,1776045058378,-163.226364,0.00038356,30]
[420376537,1776045058394,-183.478125,0.00038356,30]
[420376538,1776045058410,-151.0,0.00038356,30]
[420376539,1776045058421,-218.939012,0.00038356,30]
[420376540,1776045058445,-151.0,0.00038356,30]
[420376541,1776045058455,-151.0,0.00038356,30]
[420376542,1776045058466,-151.0,0.00038356,30]
[420376543,1776045058481,-151.0,0.00038356,30]
[420376544,1776045058491,-152.655785,0.00038356,30]
[420376545,1776045058503,-151.0,0.00038356,30]
[420376546,1776045058514,-151.0,0.00038356,30]
[420376547,1776045058536,-151.0,0.00038356,30]
[420376548,1776045058545,-151.0,0.00038356,30]
[420376549,1776045058555,-151.0,0.00038356,30]
[420376550,1776045058573,-154.710408,0.00038356,30]
[420376551,1776045058596,-151.0,0.00038356,30]
[420376552,1776045058605,-151.0,0.00038356,30]
[420376553,1776045058625,-151.0,0.00038356,30]
[420376554,1776045058635,-6071.786346,0.00038356,30]
[420376555,1776045058645,-5959.457757,0.00038356,14]
[420376556,1776045058662,-151.0,0.00038356,30]
[420376557,1776045058674,-151.0,0.00038356,30]
[420376558,1776045058686,-6071.786346,0.00038356,30]
[420376559,1776045058708,-5959.457757,0.00038356,14]
[420376560,1776045058724,-253.643914,0.00038356,30]
[420376561,1776045058734,-213.961592,0.00038356,30]
[420376562,1776045058759,-6071.786346,0.00038356,30]
[420376563,1776045058770,-5959.457757,0.00038356,14]
[420376564,1776045058791,-253.643914,0.00038356,30]
[420376565,1776045058809,-151.0,0.00038356,30]
[420376566,1776045058818,-5959.457757,0.00038356,14]
[420376567,1776045058847,-6071.786346,0.00038356,30]
[420376568,1776045058856,-253.643914,0.00038356,30]
[420376569,1776045058866,-236.78262,0.00038356,30]
[420376570,1776045058901,-274.562167,0.00038356,30]
[420376571,1776045058911,-214.325665,0.00038356,30]
[420376572,1776045058930,-151.0,0.00038356,30]
[420376573,1776045058947,-236.78262,0.00038356,30]
[420376574,1776045058959,-253.643914,0.00038356,30]
[420376575,1776045058994,-151.0,0.00038356,30]
[420376576,1776045059006,-214.325665,0.00038356,30]
[420376577,1776045059039,-236.78262,0.00038356,30]
[420376578,1776045059073,-214.325665,0.00038356,30]
[420376579,1776045059085,-236.78262,0.00038356,30]
[420376580,1776045059125,-214.325665,0.00038356,30]
[420376581,1776045059135,-245.449099,0.00038356,30]
[420376582,1776045059150,-245.449099,0.00038356,30]